bitfinex-derivatives/quotes_ETHF0:USTF0_20260125
["timestamp","ask_amount","ask_price","bid_price","bid_amount"]
[1769360477156,4.2004805,2899.9,2898.3,0.68508967]
[1769360477355,4.2004805,2899.8,2898.3,0.68508967]
[1769360477556,0.00381371,2900.0,2898.3,0.68508967]
[1769360477861,4.19967768,2899.9,2898.3,0.68508967]
[1769360478152,4.19967768,2899.8,2898.3,0.68508967]
[1769360478357,0.00381371,2900.0,2898.3,0.68508967]
[1769360478557,4.19901125,2899.9,2898.3,0.68508967]
[1769360478756,0.00381371,2900.0,2898.3,0.68508967]
[1769360478757,4.19901125,2899.8,2898.3,0.68508967]
[1769360478954,0.70516071,2900.0,2898.3,0.68508967]
[1769360479156,4.19901143,2899.9,2898.3,0.68508967]
[1769360479352,4.19901143,2899.8,2898.3,0.68508967]
[1769360479660,0.70516071,2900.0,2898.3,0.68508967]
[1769360479964,4.1988445,2899.9,2898.3,0.68508967]
[1769360480158,4.1988445,2899.8,2898.3,0.68508967]
[1769360480353,0.70516071,2900.0,2898.3,0.68508967]
[1769360480556,4.19994412,2899.9,2898.3,0.68508967]
[1769360480756,4.19994412,2899.8,2898.3,0.68508967]
[1769360480956,0.00381371,2900.0,2898.3,0.68508967]
[1769360480957,0.00381371,2900.0,2898.7,0.68508967]
[1769360481467,0.00381371,2900.0,2899.0,0.68508967]
[1769360491281,0.00381371,2900.0,2898.6,0.68508967]
[1769360493780,0.80290583,2900.0,2898.6,0.68508967]
[1769360493973,0.80290583,2900.0,2898.5,3.453]
[1769360496079,0.79909212,2899.8,2898.5,3.453]
[1769360498183,0.79909212,2899.8,2897.9,2.94420911]
[1769360499477,0.76489212,2899.8,2897.9,2.94420911]
[1769360499888,0.76489212,2899.8,2898.0,0.74642911]
[1769360502987,0.79909212,2899.6,2898.0,0.74642911]
[1769360507085,0.97177212,2899.6,2898.0,0.74642911]
[1769360507688,0.97179212,2899.4,2897.9,2.025]
[1769360507889,0.97179212,2899.4,2897.6,0.74642911]
[1769360509783,0.79909212,2899.2,2897.5,0.17587907]
[1769360509990,0.79909212,2899.1,2897.5,0.00306907]
[1769360513086,0.97182212,2898.9,2897.5,0.00306907]
[1769360519597,1.78175619,2898.9,2897.5,0.00306907]
[1769360519895,0.79909212,2898.8,2897.5,0.00306907]
[1769360520200,0.97178212,2899.5,2897.6,0.74642911]
[1769360520692,2.99778212,2899.5,2897.6,0.74642911]
[1769360521198,4.1888024,2899.4,2897.6,0.74642911]
[1769360521399,2.99778212,2899.5,2897.6,0.74642911]
[1769360521600,4.18923449,2899.4,2897.6,0.74642911]
[1769360521790,0.79909212,2899.4,2897.6,0.74642911]
[1769360522193,4.98985338,2899.3,2897.6,0.74642911]
[1769360522402,0.79909212,2899.3,2897.6,0.74642911]
[1769360524301,5.12184032,2899.2,2897.6,0.74642911]
[1769360524503,0.92736199,2899.2,2897.6,0.74642911]
[1769360524690,0.92736199,2899.0,2897.6,0.74642911]
[1769360524891,0.92736199,2899.0,2897.5,0.00306907]
[1769360525914,0.17271,2899.2,2897.5,0.87805144]
[1769360526206,1.16610335,2900.9,2897.5,0.87805144]
[1769360526207,1.10003199,2899.8,2897.7,0.87498237]
[1769360526408,4.19566678,2899.7,2897.7,0.87498237]
[1769360526620,4.19566678,2899.6,2897.7,0.87498237]
[1769360526918,4.19566678,2899.5,2897.7,0.87498237]
[1769360527111,4.19566678,2899.4,2897.7,0.87498237]
[1769360527311,1.10003199,2899.8,2897.7,0.87498237]
[1769360527612,4.19593396,2899.7,2897.7,1.04777237]
[1769360527812,4.19593396,2899.6,2897.9,0.87498237]
[1769360528013,1.10003199,2899.8,2897.9,0.87498237]
[1769360528214,4.19598587,2899.7,2897.9,0.87498237]
[1769360528417,4.19598587,2899.6,2897.9,0.87498237]
[1769360528715,1.10003199,2899.8,2897.9,0.87498237]
[1769360528918,0.00381371,2900.0,2898.3,0.87498237]
[1769360529218,4.19551213,2899.9,2898.3,0.87498237]
[1769360529420,0.9311757,2900.0,2898.3,0.87498237]
[1769360529719,0.92736199,2899.8,2898.3,2.90098237]
[1769360531520,0.92736199,2899.8,2898.3,0.87498237]
[1769360531721,0.92736199,2899.8,2897.9,2.90098237]
[1769360532426,0.92736199,2899.8,2898.0,0.87498237]
[1769360533321,0.00381371,2900.0,2898.3,1.04774237]
[1769360533529,0.00381371,2900.0,2898.5,0.87498237]
[1769360534918,0.99924073,2900.0,2898.5,0.87498237]
[1769360535318,0.99924073,2900.0,2897.6,8.88930214]
[1769360535319,0.99924073,2900.0,2898.1,0.9712236]
[1769360535527,0.99542702,2899.8,2897.8,0.17279]
[1769360535718,0.00381371,2900.0,2897.7,0.9712236]
[1769360535719,0.17269,2899.5,2897.7,0.9712236]
[1769360535928,0.99542702,2899.4,2897.7,0.9712236]
[1769360536630,0.99542702,2899.2,2897.5,0.00306907]
[1769360536823,0.99542702,2899.0,2897.5,0.00306907]
[1769360539133,0.99542702,2898.8,2897.5,0.00306907]
[1769360543526,0.17272,2899.0,2897.5,0.97429267]
[1769360543721,4.18545565,2898.9,2897.5,0.97429267]
[1769360543927,1.16814702,2899.0,2897.5,0.97429267]
[1769360544129,5.18088094,2898.9,2897.5,0.97429267]
[1769360544333,0.99542702,2898.9,2897.5,0.97429267]
[1769360544927,0.99542702,2899.5,2897.5,0.97429267]
[1769360545132,0.99542702,2899.3,2897.5,0.97429267]
[1769360545330,4.18547201,2899.2,2897.5,0.97429267]
[1769360545733,0.99542702,2899.1,2897.5,0.97429267]
[1769360545930,0.99542702,2898.9,2897.5,0.00306907]
[1769360546435,0.17271,2899.1,2897.5,0.00306907]
[1769360546436,0.99542702,2898.7,2897.5,0.00306907]
[1769360547940,0.99542702,2898.5,2896.4,0.17287]
[1769360548235,0.99542702,2898.3,2896.4,0.17287]
[1769360548432,0.99542702,2898.1,2896.2,0.9712236]
[1769360548938,0.99542702,2898.1,2896.2,0.97538179]
[1769360550037,1.16819702,2898.1,2896.2,0.97538179]
[1769360551537,0.17277,2898.1,2896.2,0.97538179]
[1769360551838,0.17275,2898.5,2896.3,0.9712236]
[1769360552026,4.17964922,2898.4,2896.3,1.1441036]
[1769360552228,2.026,2899.0,2896.2,1.17106226]
[1769360552229,0.99542702,2899.0,2896.8,0.9712236]
[1769360552437,4.1785654,2898.9,2896.9,0.17284]
[1769360552637,4.1785654,2898.8,2897.1,0.9712236]
[1769360552942,0.99542702,2898.8,2897.1,0.9712236]
[1769360556648,0.99542702,2898.8,2897.0,2.026]
[1769360556843,1.16815702,2898.8,2897.0,2.026]
[1769360557147,1.09966925,2898.6,2897.0,2.026]
[1769360557342,1.09966925,2898.6,2896.9,0.17284]
[1769360557646,1.27240925,2898.6,2896.7,1.13729592]
[1769360559747,1.09966925,2898.4,2896.7,1.13729592]
[1769360561645,0.17274,2898.6,2896.7,1.31014592]
[1769360562550,5.2716037,2898.5,2896.7,1.31014592]
[1769360562737,1.09966925,2898.5,2896.7,1.31014592]
[1769360563149,4.17298303,2898.4,2896.7,1.31014592]
[1769360563346,1.09966925,2898.4,2896.7,1.31014592]
[1769360563645,1.27240925,2898.6,2896.7,1.31014592]
[1769360563839,1.09966925,2898.4,2896.7,1.31014592]
[1769360565251,4.17031021,2898.3,2896.7,1.31014592]
[1769360565453,0.17274,2898.6,2896.7,1.31014592]
[1769360565652,4.1707594,2898.5,2896.7,1.31014592]
[1769360565848,4.1707594,2898.4,2896.7,1.31014592]
[1769360566052,0.17274,2898.6,2896.7,1.31014592]
[1769360566256,4.17040407,2898.5,2896.7,1.31014592]
[1769360566453,4.17040407,2898.4,2896.7,1.31014592]
[1769360566651,0.17274,2898.6,2896.7,1.31014592]
[1769360566851,4.17346095,2898.5,2896.7,1.31014592]
[1769360567148,4.17346095,2898.4,2896.7,1.31014592]
[1769360567350,0.17274,2898.6,2896.7,1.31014592]
[1769360567553,4.17415654,2898.5,2896.7,1.31014592]
[1769360567751,4.17415654,2898.4,2896.7,1.31014592]
[1769360567947,0.17274,2898.6,2896.7,1.31014592]
[1769360568247,4.17598288,2898.5,2896.7,1.31014592]
[1769360568449,4.17598288,2898.4,2896.7,1.31014592]
[1769360568651,0.17274,2898.6,2896.7,1.31014592]
[1769360568860,4.17686615,2898.5,2896.7,1.31014592]
[1769360569053,4.17686615,2898.4,2896.7,1.31014592]
[1769360569248,0.17274,2898.6,2896.7,1.31014592]
[1769360569448,4.17876613,2898.5,2896.7,1.31014592]
[1769360569656,4.17876613,2898.4,2896.7,1.31014592]
[1769360569853,1.27240925,2898.6,2896.7,1.31014592]
[1769360570148,4.17947316,2898.5,2896.7,1.31014592]
[1769360570350,4.17947316,2898.4,2896.7,1.31014592]
[1769360570656,5.27914241,2898.4,2896.8,3.16329592]
[1769360570857,4.17947316,2898.3,2896.8,3.16329592]
[1769360571055,5.27914241,2898.3,2896.8,3.16329592]
[1769360571257,1.09966925,2898.3,2896.8,3.16329592]
[1769360571453,1.09966925,2898.3,2896.8,1.13729592]
[1769360572259,4.17862419,2898.2,2896.8,1.13729592]
[1769360572454,1.09966925,2898.3,2896.8,1.13729592]
[1769360572661,4.17936264,2898.2,2896.8,1.13729592]
[1769360572861,1.09966925,2898.3,2896.8,1.13729592]
[1769360573061,4.17916079,2898.2,2896.8,1.13729592]
[1769360573359,4.17916079,2898.1,2896.8,1.13729592]
[1769360573560,1.09966925,2898.3,2896.8,1.13729592]
[1769360573857,5.28164288,2898.2,2896.8,1.13729592]
[1769360574054,4.18197363,2898.1,2896.8,1.13729592]
[1769360574263,1.09966925,2898.0,2896.7,0.17285]
[1769360574855,1.09966925,2898.4,2896.7,1.31014592]
[1769360575162,5.28074331,2898.3,2896.7,1.31014592]
[1769360575458,4.18107406,2898.2,2896.7,1.31014592]
[1769360575763,5.28074331,2898.2,2896.7,1.31014592]
[1769360575953,4.18107406,2898.1,2896.7,1.31014592]
[1769360576562,1.09966925,2898.0,2896.3,1.13729592]
[1769360576764,1.09966925,2897.8,2896.3,3.16329592]
[1769360576960,1.10397337,2897.8,2896.3,3.16329592]
[1769360578049,4.18271965,2897.7,2896.3,3.16329592]
[1769360578353,1.10397337,2897.8,2896.3,3.16329592]
[1769360578549,5.28201637,2897.7,2896.3,3.16329592]
[1769360578762,1.09966925,2897.7,2896.3,3.16329592]
[1769360579460,1.09966925,2897.7,2896.3,2.026]
[1769360579670,1.09966925,2897.5,2896.2,0.00415819]
[1769360579964,4.18148219,2897.4,2896.2,0.00415819]
[1769360580153,1.09966925,2897.2,2896.2,0.00415819]
[1769360580463,4.18148219,2897.1,2896.2,0.00415819]
[1769360580663,1.09966925,2897.2,2896.2,0.00415819]
[1769360580963,5.28185598,2897.1,2895.5,1.13729592]
[1769360581163,1.09966925,2897.0,2895.5,1.13729592]
[1769360582061,1.09966925,2897.0,2895.5,1.14114391]
[1769360582857,1.09966925,2896.8,2895.5,0.00384799]
[1769360583055,5.37184913,2896.7,2895.5,0.00384799]
[1769360583255,1.19818534,2896.6,2895.5,0.00384799]
[1769360583856,1.19818534,2897.0,2895.5,1.1782586]
[1769360584058,4.17135093,2896.9,2895.5,1.1782586]
[1769360584262,1.19818534,2897.0,2895.5,1.1782586]
[1769360584560,4.16906282,2896.9,2895.5,1.1782586]
[1769360584857,1.19818534,2897.0,2895.5,1.1782586]
[1769360585058,4.17051701,2896.9,2895.5,1.1782586]
[1769360585357,1.19818534,2897.0,2895.5,1.1782586]
[1769360586957,1.19818534,2897.0,2895.5,0.00384799]
[1769360587156,1.19818534,2896.8,2895.5,0.00384799]
[1769360588860,1.19818534,2896.6,2895.5,0.00384799]
[1769360589560,1.37105534,2896.6,2894.9,1.17441061]
[1769360590160,1.19818534,2896.6,2894.9,1.17441061]
[1769360590465,2.027,2896.9,2894.9,1.17682871]
[1769360590766,4.16371757,2896.8,2894.9,1.17682871]
[1769360590963,1.19818534,2896.9,2894.9,1.17682871]
[1769360591162,1.19818534,2896.7,2894.9,1.17682871]
[1769360594772,1.28344657,2896.5,2894.9,0.0024181]
[1769360595063,1.28344657,2896.3,2894.9,0.0024181]
[1769360596062,1.45632657,2896.3,2894.9,0.0024181]
[1769360596469,1.28344657,2896.1,2894.9,0.0024181]
[1769360598069,1.28344657,2896.1,2893.4,1.22238928]
[1769360598275,1.28344657,2895.9,2893.6,1.22238928]
[1769360599274,1.28344657,2895.9,2893.6,1.22619684]
[1769360599472,1.28344657,2895.7,2893.8,0.17303]
[1769360599771,1.28594451,2895.7,2893.8,0.17303]
[1769360600074,1.28594451,2895.7,2893.8,1.39541928]
[1769360600567,1.28344657,2895.3,2893.6,0.00380756]
[1769360600867,1.45639657,2895.1,2893.6,1.22619684]
[1769360601073,2.028,2895.3,2893.6,1.22619684]
[1769360601268,4.74044657,2895.5,2893.6,1.22619684]
[1769360601269,1.28344657,2895.5,2893.6,1.22619684]
[1769360601467,2.028,2895.4,2893.6,1.22619684]
[1769360601863,1.28344657,2895.5,2893.6,1.22619684]
[1769360602060,1.28344657,2895.4,2893.6,1.22619684]
[1769360602662,0.17541794,2895.7,2893.6,1.22619684]
[1769360602869,0.17541794,2895.7,2893.8,1.22238928]
[1769360603268,1.45886451,2895.7,2893.8,1.22238928]
[1769360603469,1.28344657,2895.5,2893.6,1.22619684]
[1769360604266,1.28344657,2895.3,2893.6,1.22619684]
[1769360606774,1.28344657,2895.0,2893.6,0.00380756]
[1769360607672,0.17299,2894.5,2892.4,1.39549928]
[1769360607872,1.28344657,2894.5,2892.6,1.22238928]
[1769360608083,2.028,2894.8,2892.4,0.27286912]
[1769360608084,2.028,2894.8,2892.8,1.22238928]
[1769360608284,4.14987824,2894.7,2892.8,1.22238928]
[1769360608477,3.31144657,2894.8,2892.8,1.22238928]
[1769360608679,4.1488349,2894.7,2892.8,1.22566086]
[1769360608980,3.31144657,2894.8,2892.8,1.22566086]
[1769360609182,1.28344657,2894.6,2892.8,1.22566086]
[1769360609569,1.28344657,2894.4,2892.8,1.22566086]
[1769360609772,1.28344657,2894.4,2892.8,0.00327158]
[1769360610375,1.28344657,2894.2,2892.8,0.00327158]
[1769360611875,1.28344657,2894.6,2892.8,1.22566086]
[1769360612077,4.14350197,2894.5,2892.8,1.22566086]
[1769360612379,1.28344657,2894.6,2892.8,1.22566086]
[1769360612580,4.14330893,2894.5,2892.8,1.22566086]
[1769360612775,1.28344657,2894.6,2892.8,1.22566086]
[1769360612977,0.17296,2894.9,2892.8,1.22566086]
[1769360613181,4.14339947,2894.8,2892.8,1.22566086]
[1769360613481,4.14339947,2894.7,2892.8,1.22566086]
[1769360613778,1.28344657,2895.0,2893.2,1.31225622]
[1769360613977,4.90427999,2895.4,2893.2,1.48531622]
[1769360614177,4.14391142,2895.3,2893.2,1.48531622]
[1769360614371,4.14391142,2895.2,2893.2,1.48531622]
[1769360614570,4.14391142,2895.1,2893.2,1.48531622]
[1769360614988,4.14391142,2895.1,2893.4,1.31225622]
[1769360615286,0.00249794,2895.7,2893.8,1.48528622]
[1769360615585,0.00249794,2895.7,2894.3,1.31225622]
[1769360615784,0.00249794,2895.7,2894.5,1.31225622]
[1769360617175,0.00249794,2895.7,2894.3,0.173]
[1769360617176,0.00249794,2895.7,2894.6,6.79925622]
[1769360617676,0.00249794,2895.7,2894.7,3.34025622]
[1769360617984,3.459,2896.6,2894.8,1.31225622]
[1769360618178,4.15218502,2896.5,2894.8,1.31225622]
[1769360618384,3.459,2896.6,2894.8,1.31225622]
[1769360618572,1.27233999,2896.8,2894.8,1.48522622]
[1769360618781,4.1534019,2896.7,2895.0,1.31225622]
[1769360618980,1.27636174,2896.8,2895.0,1.31629602]
[1769360619279,0.00402175,2896.8,2895.0,1.75897748]
[1769360619477,0.00402175,2896.8,2895.2,1.31225622]
[1769360623086,0.00402175,2896.8,2895.2,1.48519622]
[1769360623781,0.00402175,2896.8,2895.3,0.17294]
[1769360623981,0.00402175,2896.8,2895.4,1.31225622]
[1769360625288,0.00402175,2896.8,2895.4,1.48518622]
[1769360627485,4.73133999,2897.7,2895.8,1.31225622]
[1769360627682,4.73133999,2897.7,2896.0,1.31225622]
[1769360627885,3.30033999,2898.1,2896.0,1.31225622]
[1769360628085,1.27233999,2898.0,2896.2,1.31225622]
[1769360628581,1.27682872,2898.0,2896.2,1.31225622]
[1769360635695,1.27682872,2898.0,2896.3,2.027]
[1769360638491,1.27682872,2898.0,2896.2,1.31225622]
[1769360638688,1.27682872,2898.0,2896.4,2.027]
[1769360639701,1.27682872,2898.0,2896.5,1.31225622]
[1769360640792,0.00448873,2898.0,2896.5,1.48512622]
[1769360642311,0.00448873,2898.0,2896.9,1.31225622]
[1769360642602,4.72933999,2898.8,2896.9,1.48509622]
[1769360642997,1.31643068,2898.7,2897.1,1.28551512]
[1769360643193,1.31643068,2898.5,2896.6,1.28551512]
[1769360643398,1.31643068,2898.3,2896.6,2.03056653]
[1769360643603,1.31643068,2898.1,2896.6,2.03056653]
[1769360643998,4.17148196,2898.0,2896.6,2.03056653]
[1769360644197,4.17148196,2897.9,2896.6,2.03056653]
[1769360644497,0.00444734,2898.5,2896.7,1.28551512]
[1769360644702,4.17694494,2898.4,2896.7,1.28551512]
[1769360644901,4.17694494,2898.3,2896.7,1.28551512]
[1769360645101,4.17694494,2898.2,2896.7,1.28551512]
[1769360645402,4.17694494,2898.1,2896.7,1.28551512]
[1769360645701,0.00444734,2898.5,2896.7,1.45836512]
[1769360645904,5.4983379,2898.4,2896.7,1.45836512]
[1769360646099,1.31643068,2898.2,2896.7,3.48536512]
[1769360646299,5.4983379,2898.1,2896.7,2.19985]
[1769360646500,4.18190722,2898.0,2896.7,2.19985]
[1769360646698,1.31643068,2897.9,2896.6,2.03056653]
[1769360650105,4.18997079,2897.8,2896.6,2.03056653]
[1769360650308,1.31643068,2897.9,2896.6,2.03056653]
[1769360650603,4.18991882,2897.8,2896.6,2.03056653]
[1769360650803,1.31643068,2897.9,2896.6,2.03056653]
[1769360651101,4.18991847,2897.8,2896.6,2.03056653]
[1769360651304,1.31643068,2897.9,2896.6,2.03056653]
[1769360651504,4.19098763,2897.8,2896.6,2.03056653]
[1769360651700,1.31643068,2897.9,2896.6,2.03056653]
[1769360651896,4.1910327,2897.8,2896.6,2.03056653]
[1769360652096,1.31643068,2897.9,2896.6,2.03056653]
[1769360652300,4.19230585,2897.8,2896.6,2.03056653]
[1769360652597,1.31643068,2897.9,2896.6,2.03056653]
[1769360652794,4.1923279,2897.8,2896.6,2.03056653]
[1769360653000,4.1923279,2897.7,2896.6,2.03056653]
[1769360653194,1.31643068,2897.9,2896.6,0.00356653]
[1769360653400,5.50978269,2897.8,2896.6,2.03056653]
[1769360653601,4.19335201,2897.7,2896.6,2.03056653]
[1769360654797,4.19335201,2897.7,2896.6,0.00356653]
[1769360656408,4.19335201,2897.7,2896.6,1.45415998]
[1769360656605,4.19335201,2897.6,2896.6,1.45415998]
[1769360656805,1.41892258,2898.2,2896.6,1.45415998]
[1769360657006,5.04585771,2898.4,2896.6,1.45415998]
[1769360657007,5.61572392,2898.1,2896.6,1.45415998]
[1769360657203,1.41892258,2897.9,2896.6,2.03056653]
[1769360657403,4.19680134,2897.8,2896.6,2.03056653]
[1769360657902,4.19680134,2897.8,2896.6,0.00356653]
[1769360658107,5.61572392,2897.8,2896.6,0.00356653]
[1769360658309,4.19680134,2897.7,2896.6,0.00356653]
[1769360658606,4.19680134,2897.6,2896.6,0.00356653]
[1769360658811,4.19680134,2897.5,2896.6,0.00356653]
[1769360659107,4.19680134,2897.4,2896.6,0.00356653]
[1769360659310,6.46478029,2898.2,2896.6,1.45415998]
[1769360659501,4.18011982,2898.1,2896.6,1.45415998]
[1769360659706,4.18011982,2898.0,2896.6,1.45415998]
[1769360659910,4.18011982,2897.9,2896.6,1.45415998]
[1769360660102,4.18011982,2897.8,2896.6,1.45415998]
[1769360660304,4.18011982,2897.7,2896.6,1.45415998]
[1769360660503,5.04585771,2898.4,2896.6,1.45415998]
[1769360660805,6.46478029,2898.2,2896.6,0.00356653]
[1769360661009,1.41892258,2898.0,2896.6,0.00356653]
[1769360661206,5.59896096,2897.9,2896.6,0.00356653]
[1769360661408,4.18003838,2897.8,2896.6,0.00356653]
[1769360662215,4.18003838,2897.8,2896.6,1.45415998]
[1769360662512,1.41892258,2898.4,2896.6,1.45415998]
[1769360662714,4.18016008,2898.3,2896.6,1.45415998]
[1769360662914,4.18016008,2898.2,2896.6,1.45415998]
[1769360663213,1.41892258,2898.4,2896.6,1.62701998]
[1769360663515,4.17948137,2898.3,2896.6,1.62701998]
[1769360663715,4.17948137,2898.2,2896.6,1.62701998]
[1769360664012,1.41892258,2898.4,2896.6,1.62701998]
[1769360664209,4.17965732,2898.3,2896.6,1.62701998]
[1769360664509,4.17965732,2898.2,2896.6,1.62701998]
[1769360664704,1.41892258,2898.4,2896.6,1.62701998]
[1769360664906,4.17893358,2898.3,2896.6,1.62701998]
[1769360665109,4.17893358,2898.2,2896.6,1.62701998]
[1769360665311,1.41892258,2898.4,2896.6,1.62701998]
[1769360665515,4.17857604,2898.3,2896.6,1.62701998]
[1769360665809,0.00444734,2898.5,2897.2,1.45059345]
[1769360666005,0.00444734,2898.5,2897.4,1.45059345]
[1769360666712,0.00444734,2898.5,2897.4,4.90559345]
[1769360667808,0.00444734,2898.5,2897.5,2.026]
[1769360669413,0.00444734,2898.5,2897.6,2.026]
[1769360670503,0.00444734,2898.5,2897.6,3.47659345]
[1769360673107,0.00444734,2898.5,2897.7,1.28182065]
[1769360673407,1.2942428,2899.6,2897.7,1.45461065]
[1769360674317,1.29842166,2899.6,2897.7,1.45461065]
[1769360674708,1.29842166,2899.6,2897.9,1.28182065]
[1769360675420,0.00417886,2899.6,2897.9,1.45460065]
[1769360675909,0.00417886,2899.6,2898.1,1.45459065]
[1769360676114,0.00417886,2899.6,2898.3,1.28182065]
[1769360676315,0.00417886,2899.6,2898.5,1.28182065]
[1769360676605,0.00417886,2899.6,2898.2,0.17276]
[1769360676805,1.29842166,2899.6,2897.7,1.28182065]
[1769360677013,1.29842166,2899.6,2897.8,5.48]
[1769360677813,4.14382494,2899.5,2897.8,5.48]
[1769360678018,1.2942428,2899.5,2897.8,5.48]
[1769360678712,1.2942428,2899.5,2897.6,0.1728]
[1769360679022,1.2942428,2899.3,2897.6,2.026]
[1769360679614,1.2942428,2898.9,2897.1,1.28182065]
[1769360679917,1.2942428,2898.7,2897.0,2.026]
[1769360680618,5.43894337,2898.6,2897.0,2.026]
[1769360680818,1.2942428,2898.5,2897.0,2.026]
[1769360684017,1.2942428,2898.5,2897.0,3.30782065]
[1769360684212,2.63228937,2898.9,2897.1,1.28182065]
[1769360684420,4.12373687,2898.8,2897.1,1.28182065]
[1769360684622,4.12373687,2898.7,2897.1,1.28182065]
[1769360684824,1.2942428,2898.8,2897.1,1.28182065]
[1769360685024,4.12373648,2898.7,2897.1,1.28182065]
[1769360685316,1.2942428,2898.5,2896.6,1.28538718]
[1769360685521,1.2942428,2898.3,2896.6,0.00356653]
[1769360685918,1.4670028,2898.3,2896.6,0.00356653]
[1769360686313,1.16531657,2898.4,2896.6,0.00356653]
[1769360686314,1.2942428,2898.1,2896.6,0.00356653]
[1769360691628,1.4670228,2898.1,2896.6,0.00356653]
[1769360692122,1.2942428,2897.9,2896.6,0.00356653]
[1769360692733,1.2942428,2897.8,2895.8,1.28182065]
[1769360692919,1.43654563,2897.9,2895.4,1.28182065]
[1769360692920,1.4670828,2897.0,2895.4,1.28182065]
[1769360693122,9.60499392,2897.7,2895.1,2.026]
[1769360693123,1.2942428,2896.8,2895.1,2.026]
[1769360693831,1.29691277,2896.8,2895.2,1.28182065]
[1769360694228,1.29691277,2896.8,2895.1,2.02937643]
[1769360694628,1.29691277,2896.8,2895.2,1.28182065]
[1769360699437,1.46976277,2896.8,2895.1,0.00337643]
[1769360699645,1.46976277,2896.8,2895.1,2.03037643]
[1769360701040,1.2942428,2896.3,2895.1,0.00337643]
[1769360702240,1.4671428,2896.0,2894.4,1.28182065]
[1769360702452,1.4671428,2896.0,2893.9,4.73782065]
[1769360702642,1.4671428,2896.0,2894.0,2.027]
[1769360702947,1.4671428,2896.0,2894.0,3.4014113]
[1769360703143,1.4671428,2896.0,2894.0,3.4038458]
[1769360703345,1.4671428,2896.0,2894.1,1.3744113]
[1769360703546,1.38454564,2896.4,2894.3,1.3744113]
[1769360704537,1.38454564,2896.4,2894.3,1.5474113]
[1769360705044,1.38721561,2896.8,2894.8,1.3744113]
[1769360705242,1.38721561,2896.8,2895.0,1.3744113]
[1769360705948,1.56006561,2896.8,2895.0,1.3744113]
[1769360706155,1.55740564,2896.7,2895.0,1.3744113]
[1769360706342,1.38454564,2896.5,2894.7,0.17297]
[1769360706547,1.38454564,2896.5,2894.7,2.19997]
[1769360706948,1.38454564,2896.5,2894.7,3.5743813]
[1769360707447,1.55741564,2896.5,2894.7,3.5743813]
[1769360707644,1.38454564,2896.2,2894.1,1.3744113]
[1769360707848,1.38454564,2896.2,2894.2,3.4014113]
[1769360708549,1.38454564,2896.2,2894.3,1.3744113]
[1769360708855,1.38454564,2896.2,2894.3,1.5474113]
[1769360709058,1.38454564,2896.7,2894.6,1.5473913]
[1769360709256,5.4917588,2896.6,2894.6,1.5473913]
[1769360709457,1.38454564,2896.6,2894.6,1.5473913]
[1769360711355,1.38454564,2896.6,2894.8,1.3744113]
[1769360712362,4.11217181,2896.5,2894.8,1.3744113]
[1769360712562,1.38454564,2896.6,2894.8,1.3744113]
[1769360712759,4.11217181,2896.5,2894.8,1.3744113]
[1769360712961,1.38454564,2896.6,2894.8,1.3744113]
[1769360713162,5.49671745,2896.5,2894.8,1.3744113]
[1769360713363,6.36266997,2896.8,2894.3,1.3744113]
[1769360713364,1.38454564,2896.0,2894.3,1.3744113]
[1769360713560,1.38454564,2895.8,2894.2,3.457]
[1769360713764,1.38454564,2895.8,2894.0,0.0024345]
[1769360714263,4.11657187,2895.7,2894.0,0.0024345]
[1769360714453,1.38454564,2895.8,2894.0,0.0024345]
[1769360714957,1.42727587,2895.6,2894.0,0.0024345]
[1769360715468,1.60019587,2895.6,2894.0,0.0024345]
[1769360716054,1.42727587,2895.2,2894.0,0.0024345]
[1769360716464,1.42727587,2895.1,2894.0,0.0024345]
[1769360717658,1.60023587,2894.9,2893.1,1.3828539]
[1769360717858,5.54873948,2894.8,2893.1,1.3828539]
[1769360718058,5.54873948,2894.7,2893.1,3.4108539]
[1769360718268,1.42727587,2894.7,2893.1,3.4108539]
[1769360718964,1.43092311,2894.7,2893.1,3.41475497]
[1769360720966,0.00364724,2894.7,2893.2,1.3828539]
[1769360721963,1.60028587,2894.2,2893.1,0.00390107]
[1769360722165,1.42727587,2894.0,2892.4,1.3828539]
[1769360722471,1.60028587,2894.2,2892.4,1.3828539]
[1769360722767,5.55081572,2894.1,2892.4,1.3828539]
[1769360722966,4.12353985,2894.0,2892.4,1.3828539]
[1769360723174,4.12353985,2894.0,2892.4,1.38552666]
[1769360723676,1.42727587,2894.6,2892.6,1.3828539]
[1769360723972,4.12071878,2894.5,2892.9,1.5559339]
[1769360724164,0.00364724,2894.7,2892.9,1.5559339]
[1769360725367,0.00364724,2894.7,2893.1,1.5559239]
[1769360725668,0.00364724,2894.7,2893.3,1.3828539]
[1769360727581,0.1729,2896.0,2893.8,1.5558839]
[1769360727771,4.12099916,2895.9,2894.0,1.3828539]
[1769360727971,4.12099916,2895.8,2894.2,1.3828539]
[1769360728168,4.12099916,2895.7,2894.2,1.3828539]
[1769360728364,4.12099916,2895.6,2894.2,1.3828539]
[1769360728569,0.00310249,2895.6,2894.2,1.3828539]
[1769360728769,4.1223408,2895.5,2894.2,1.3828539]
[1769360728973,0.00310249,2895.6,2894.2,1.3828539]
[1769360729774,3.459,2896.5,2894.7,1.3828539]
[1769360729968,4.12304491,2896.4,2894.7,1.3828539]
[1769360730170,3.459,2896.5,2894.7,1.3828539]
[1769360730369,4.1228816,2896.4,2894.7,1.3828539]
[1769360730577,3.459,2896.5,2894.7,1.3828539]
[1769360730874,4.12242992,2896.4,2894.7,1.38616595]
[1769360731074,3.46261279,2896.5,2894.7,1.38616595]
[1769360731271,4.12243056,2896.4,2894.7,1.38616595]
[1769360731466,3.46261279,2896.5,2894.7,1.38616595]
[1769360731664,4.1219767,2896.4,2894.7,1.38616595]
[1769360731980,3.46261279,2896.5,2894.7,1.38616595]
[1769360732178,4.12197589,2896.4,2894.7,1.38616595]
[1769360732476,3.46261279,2896.5,2894.7,1.38616595]
[1769360734181,1.40554542,2896.3,2894.7,1.38616595]
[1769360735183,3.46261279,2896.5,2894.7,1.38616595]
[1769360735383,0.00361279,2896.5,2894.7,1.38616595]
[1769360737181,1.40915821,2896.5,2894.7,1.38616595]
[1769360739985,1.58202821,2896.5,2894.7,1.38616595]
[1769360740384,1.40554542,2896.2,2894.7,0.00331205]
[1769360740582,1.57843542,2896.2,2894.7,0.00331205]
[1769360741582,1.40554542,2896.0,2894.7,0.00331205]
[1769360742594,0.17289,2896.2,2894.7,0.00331205]
[1769360743181,1.57843542,2896.2,2894.7,0.00331205]
[1769360744776,1.57843542,2896.2,2894.7,1.34569776]
[1769360746388,0.17289,2896.2,2894.7,1.34569776]
[1769360747794,0.00361279,2896.5,2894.7,1.51866776]
[1769360750994,1.40915821,2896.5,2894.7,1.51866776]
[1769360751892,1.40554542,2896.3,2894.7,0.00331205]
[1769360752198,1.57842542,2896.3,2894.7,0.00331205]
[1769360754494,4.13299857,2896.2,2894.7,0.00331205]
[1769360754694,1.57842542,2896.3,2894.7,0.00331205]
[1769360754896,4.13299857,2896.2,2894.7,0.00331205]
[1769360755097,1.57842542,2896.3,2894.7,0.00331205]